[Event "Live Chess"]
[Site "Chess.com"]
[Date "2024.06.02"]
[Round "-"]
[White "Delacorta"]
[Black "raclement"]
[Result "0-1"]
[WhiteElo "1516"]
[BlackElo "1734"]
[TimeControl "300"]
[EndTime "3:10:41 PDT"]
[Termination "raclement won on time"]

1. d4 {[%clk 0:04:56.8]} 1... c5 {[%clk 0:04:58.1]} 2. Nf3 {[%clk 0:04:53.8]}
2... cxd4 {[%clk 0:04:56.1]} 3. Nxd4 {[%clk 0:04:52]} 3... g6 {[%clk 0:04:54.9]}
4. Bf4 {[%clk 0:04:43]} 4... e5 {[%clk 0:04:46.8]} 5. Bxe5 {[%clk 0:04:30.9]}
5... Qa5+ {[%clk 0:04:44.2]} 6. Nc3 {[%clk 0:04:17.2]} 6... Qxe5 {[%clk
0:04:42.2]} 7. Qd2 {[%clk 0:04:09.6]} 7... Bg7 {[%clk 0:04:40.7]} 8. Nf3 {[%clk
0:04:05.2]} 8... Qc7 {[%clk 0:04:26.9]} 9. Qe3+ {[%clk 0:04:04.1]} 9... Ne7
{[%clk 0:04:24.3]} 10. Nd5 {[%clk 0:03:58.1]} 10... Qd6 {[%clk 0:04:18.2]} 11.
O-O-O {[%clk 0:03:44.2]} 11... Nc6 {[%clk 0:04:13.5]} 12. Nb6 {[%clk 0:03:29.9]}
12... Qb8 {[%clk 0:04:01]} 13. Nxa8 {[%clk 0:03:18.9]} 13... Qxa8 {[%clk
0:03:59.5]} 14. g3 {[%clk 0:03:00.4]} 14... O-O {[%clk 0:03:57.5]} 15. Bg2
{[%clk 0:02:58.6]} 15... Qb8 {[%clk 0:03:46.3]} 16. Kb1 {[%clk 0:02:54.5]} 16...
Nf5 {[%clk 0:03:41.3]} 17. Qf4 {[%clk 0:02:44.7]} 17... Qxf4 {[%clk 0:03:37.5]}
18. gxf4 {[%clk 0:02:43.3]} 18... d6 {[%clk 0:03:30.4]} 19. Bh3 {[%clk 0:02:31]}
19... Re8 {[%clk 0:03:27.7]} 20. e3 {[%clk 0:02:22.8]} 20... Be6 {[%clk
0:03:22.5]} 21. Ng5 {[%clk 0:02:16.7]} 21... Bc4 {[%clk 0:03:15.3]} 22. Bxf5
{[%clk 0:02:09]} 22... gxf5 {[%clk 0:03:12.4]} 23. Rxd6 {[%clk 0:02:06.5]} 23...
Be2 {[%clk 0:03:02.6]} 24. Re1 {[%clk 0:01:59.2]} 24... Bh5 {[%clk 0:03:00.3]}
25. Rd7 {[%clk 0:01:49.3]} 25... b6 {[%clk 0:02:54.9]} 26. e4 {[%clk 0:01:28.8]}
26... fxe4 {[%clk 0:02:48.7]} 27. Rxe4 {[%clk 0:01:21.5]} 27... Rxe4 {[%clk
0:02:45]} 28. Nxe4 {[%clk 0:01:20.3]} 28... Bg6 {[%clk 0:02:40.3]} 29. Nd6
{[%clk 0:01:14]} 29... Bd4 {[%clk 0:02:32.1]} 30. Kc1 {[%clk 0:00:59.6]} 30...
Bxf2 {[%clk 0:02:30.1]} 31. f5 {[%clk 0:00:53.3]} 31... Bh5 {[%clk 0:02:27]} 32.
f6 {[%clk 0:00:49.2]} 32... Bh4 {[%clk 0:02:20.9]} 33. Ne4 {[%clk 0:00:38.9]}
33... h6 {[%clk 0:02:12.8]} 34. Rc7 {[%clk 0:00:36.3]} 34... Nd4 {[%clk
0:02:02.6]} 35. Rc8+ {[%clk 0:00:28.4]} 35... Kh7 {[%clk 0:02:00.4]} 36. Rd8
{[%clk 0:00:23.8]} 36... Ne2+ {[%clk 0:01:57.4]} 37. Kd2 {[%clk 0:00:23.1]}
37... Nf4 {[%clk 0:01:53.8]} 38. Rd7 {[%clk 0:00:20.8]} 38... Ne6 {[%clk
0:01:48.3]} 39. Nd6 {[%clk 0:00:18.5]} 39... Kg8 {[%clk 0:01:42.9]} 40. Rxa7
{[%clk 0:00:16]} 40... Bxf6 {[%clk 0:01:38.6]} 41. Ne8 {[%clk 0:00:15.1]} 41...
Bg5+ {[%clk 0:01:35.6]} 42. Kc3 {[%clk 0:00:13.4]} 42... Nc5 {[%clk 0:01:32.5]}
43. Ra8 {[%clk 0:00:07.9]} 43... Ne4+ {[%clk 0:01:29.3]} 44. Kb3 {[%clk
0:00:06.8]} 44... Kh7 {[%clk 0:01:25.9]} 45. Nc7 {[%clk 0:00:00.2]} 45... Nd2+
{[%clk 0:01:18.6]} 0-1

[Event "Live Chess"]
[Site "Chess.com"]
[Date "2024.06.02"]
[Round "-"]
[White "Frankie_Badacsonyi"]
[Black "ACM42"]
[Result "0-1"]
[WhiteElo "2387"]
[BlackElo "2177"]
[TimeControl "300"]
[EndTime "3:10:46 PDT"]
[Termination "ACM42 won by resignation"]

1. d4 {[%clk 0:04:58]} 1... Nf6 {[%clk 0:04:58.9]} 2. c4 {[%clk 0:04:57.2]} 2...
g6 {[%clk 0:04:58.3]} 3. Nc3 {[%clk 0:04:56.2]} 3... Bg7 {[%clk 0:04:57.9]} 4.
e4 {[%clk 0:04:55.6]} 4... O-O {[%clk 0:04:57.4]} 5. h3 {[%clk 0:04:55]} 5... d6
{[%clk 0:04:55.2]} 6. Be3 {[%clk 0:04:54.1]} 6... Nc6 {[%clk 0:04:53.5]} 7. Nf3
{[%clk 0:04:50.8]} 7... e5 {[%clk 0:04:52.5]} 8. d5 {[%clk 0:04:47.6]} 8... Ne7
{[%clk 0:04:51.7]} 9. Nd2 {[%clk 0:04:46.1]} 9... Nh5 {[%clk 0:04:50.1]} 10. g3
{[%clk 0:04:41.6]} 10... f5 {[%clk 0:04:46.9]} 11. exf5 {[%clk 0:04:40.7]} 11...
Nxf5 {[%clk 0:04:45.8]} 12. Nde4 {[%clk 0:04:16.1]} 12... Nxe3 {[%clk
0:04:30.6]} 13. fxe3 {[%clk 0:04:16]} 13... Bh6 {[%clk 0:04:28.9]} 14. Qd2
{[%clk 0:03:56.7]} 14... Bf5 {[%clk 0:04:22.4]} 15. Be2 {[%clk 0:03:53.6]} 15...
Nf6 {[%clk 0:03:44.5]} 16. Bd3 {[%clk 0:03:45.8]} 16... Nxe4 {[%clk 0:03:38.6]}
17. Nxe4 {[%clk 0:03:39.4]} 17... Bxe4 {[%clk 0:03:37]} 18. Bxe4 {[%clk
0:03:38.2]} 18... Qg5 {[%clk 0:03:36.4]} 19. g4 {[%clk 0:03:28.3]} 19... Qh4+
{[%clk 0:03:24.5]} 20. Kd1 {[%clk 0:03:27.2]} 20... Rf2 {[%clk 0:03:23.6]} 0-1

[Event "Live Chess"]
[Site "Chess.com"]
[Date "2024.06.02"]
[Round "-"]
[White "McFim"]
[Black "Ferrarifan27"]
[Result "0-1"]
[WhiteElo "1701"]
[BlackElo "2140"]
[TimeControl "300"]
[EndTime "3:10:48 PDT"]
[Termination "Ferrarifan27 won by resignation"]

1. e4 {[%clk 0:04:57.5]} 1... e5 {[%clk 0:04:57.9]} 2. Nf3 {[%clk 0:04:56.6]}
2... Nc6 {[%clk 0:04:56.4]} 3. Bb5 {[%clk 0:04:55.8]} 3... a6 {[%clk 0:04:55.2]}
4. Ba4 {[%clk 0:04:54.7]} 4... Nf6 {[%clk 0:04:52.7]} 5. O-O {[%clk 0:04:53.6]}
5... Be7 {[%clk 0:04:50.8]} 6. Re1 {[%clk 0:04:52.1]} 6... b5 {[%clk 0:04:47.7]}
7. Bb3 {[%clk 0:04:51.2]} 7... O-O {[%clk 0:04:46]} 8. c3 {[%clk 0:04:50.1]}
8... d5 {[%clk 0:04:44]} 9. exd5 {[%clk 0:04:48.9]} 9... Nxd5 {[%clk 0:04:43.9]}
10. Nxe5 {[%clk 0:04:41.1]} 10... Nxe5 {[%clk 0:04:43.8]} 11. Rxe5 {[%clk
0:04:39.5]} 11... c6 {[%clk 0:04:40]} 12. d4 {[%clk 0:04:35]} 12... Bd6 {[%clk
0:04:39.4]} 13. Re1 {[%clk 0:04:33.5]} 13... Qh4 {[%clk 0:04:37.1]} 14. g3
{[%clk 0:04:31.6]} 14... Qh3 {[%clk 0:04:36.1]} 15. Qf3 {[%clk 0:04:00.9]} 15...
Bg4 {[%clk 0:04:32.7]} 16. Qg2 {[%clk 0:03:57.7]} 16... Qh5 {[%clk 0:04:31.4]}
17. Be3 {[%clk 0:03:37.4]} 17... Rfe8 {[%clk 0:04:25.3]} 18. Nd2 {[%clk
0:03:32.1]} 18... Re7 {[%clk 0:04:08.8]} 19. Bxd5 {[%clk 0:03:25.7]} 19... cxd5
{[%clk 0:04:07.3]} 20. f3 {[%clk 0:03:06.9]} 20... Bh3 {[%clk 0:04:04.1]} 21.
Qh1 {[%clk 0:03:05.9]} 21... Rae8 {[%clk 0:04:01.5]} 22. Bf2 {[%clk 0:03:02.1]}
22... Rxe1+ {[%clk 0:03:59.5]} 23. Rxe1 {[%clk 0:02:59.8]} 23... Rxe1+ {[%clk
0:03:58.9]} 24. Bxe1 {[%clk 0:02:57.8]} 24... Qf5 {[%clk 0:03:57.9]} 25. Kf2
{[%clk 0:02:41.9]} 25... Qc2 {[%clk 0:03:56.2]} 26. f4 {[%clk 0:01:49.7]} 26...
Be6 {[%clk 0:03:54]} 27. Qf3 {[%clk 0:01:29.6]} 27... g6 {[%clk 0:03:49.6]} 28.
Kg1 {[%clk 0:01:14.6]} 28... Qxb2 {[%clk 0:03:39.9]} 29. Nf1 {[%clk 0:01:08.1]}
29... Qxa2 {[%clk 0:03:36.2]} 30. g4 {[%clk 0:00:56.1]} 30... Qb1 {[%clk
0:03:33.9]} 31. Nd2 {[%clk 0:00:47.5]} 31... Qxe1+ {[%clk 0:03:31.6]} 0-1

[Event "Live Chess"]
[Site "Chess.com"]
[Date "2024.06.02"]
[Round "-"]
[White "resipsa6"]
[Black "booktrunk"]
[Result "1/2-1/2"]
[WhiteElo "2023"]
[BlackElo "1500"]
[TimeControl "300"]
[EndTime "3:11:08 PDT"]
[Termination "Game drawn by agreement"]

1. e4 {[%clk 0:04:58.3]} 1... b6 {[%clk 0:04:43.5]} 2. d4 {[%clk 0:04:57.1]}
2... Bb7 {[%clk 0:04:43.4]} 3. Nc3 {[%clk 0:04:55.9]} 3... e6 {[%clk 0:04:38.8]}
4. Nf3 {[%clk 0:04:54.6]} 4... c5 {[%clk 0:04:37.4]} 5. dxc5 {[%clk 0:04:53.8]}
5... Bxc5 {[%clk 0:04:34.8]} 6. Bf4 {[%clk 0:04:53.3]} 6... h6 {[%clk
0:04:11.3]} 7. Bd6 {[%clk 0:04:51.6]} 7... Bxd6 {[%clk 0:03:56.3]} 8. Qxd6
{[%clk 0:04:51.5]} 8... Qe7 {[%clk 0:03:49.6]} 9. Qxe7+ {[%clk 0:04:50.4]} 9...
Nxe7 {[%clk 0:03:47.3]} 10. O-O-O {[%clk 0:04:50.3]} 10... O-O {[%clk
0:03:44.9]} 11. Ne5 {[%clk 0:04:47.9]} 11... Rd8 {[%clk 0:03:43.1]} 12. Bb5
{[%clk 0:04:44.7]} 12... d6 {[%clk 0:03:41.4]} 13. Nf3 {[%clk 0:04:41.3]} 13...
Bc6 {[%clk 0:03:36.2]} 14. Bxc6 {[%clk 0:04:40.3]} 14... Nbxc6 {[%clk
0:03:34.1]} 15. Rhe1 {[%clk 0:04:38.6]} 15... f6 {[%clk 0:03:22.6]} 16. Nd4
{[%clk 0:04:37.2]} 16... Nxd4 {[%clk 0:03:20.8]} 17. Rxd4 {[%clk 0:04:37.1]}
17... Nc6 {[%clk 0:03:17]} 18. Rd2 {[%clk 0:04:36.1]} 18... Rd7 {[%clk
0:03:13.8]} 19. Red1 {[%clk 0:04:35.3]} 19... Rad8 {[%clk 0:03:11.7]} 20. Nb5
{[%clk 0:04:34.5]} 20... d5 {[%clk 0:03:09.4]} 21. exd5 {[%clk 0:04:34.1]} 21...
exd5 {[%clk 0:03:08.2]} 22. Nd4 {[%clk 0:04:33.7]} 22... Nxd4 {[%clk 0:03:06.5]}
23. Rxd4 {[%clk 0:04:32.8]} 23... Kf7 {[%clk 0:03:05.5]} 24. c4 {[%clk
0:04:31.2]} 24... Ke6 {[%clk 0:03:02.4]} 25. cxd5+ {[%clk 0:04:29.1]} 25... Rxd5
{[%clk 0:03:00.7]} 26. Re1+ {[%clk 0:04:26.5]} 26... Kf7 {[%clk 0:02:58.5]} 27.
Rxd5 {[%clk 0:04:22.4]} 27... Rxd5 {[%clk 0:02:57.1]} 28. Rd1 {[%clk 0:04:20.2]}
28... Rxd1+ {[%clk 0:02:55.2]} 29. Kxd1 {[%clk 0:04:19.5]} 29... Ke6 {[%clk
0:02:54.7]} 30. Ke2 {[%clk 0:04:18.8]} 30... g5 {[%clk 0:02:53.7]} 31. g4 {[%clk
0:04:17.2]} 31... f5 {[%clk 0:02:52.4]} 32. f3 {[%clk 0:04:15.2]} 32... f4
{[%clk 0:02:50.4]} 33. b4 {[%clk 0:04:08.5]} 33... Kd5 {[%clk 0:02:50.3]} 34.
Kd3 {[%clk 0:04:06.1]} 34... b5 {[%clk 0:02:49.3]} 35. a3 {[%clk 0:04:04.4]}
35... a6 {[%clk 0:02:49.2]} 36. Kc3 {[%clk 0:04:03.5]} 36... Ke5 {[%clk
0:02:46]} 37. Kd3 {[%clk 0:04:02.8]} 37... Kd5 {[%clk 0:02:42.9]} 38. h3 {[%clk
0:04:01.5]} 38... Ke5 {[%clk 0:02:41]} 39. Kc3 {[%clk 0:03:55.3]} 39... Kd5
{[%clk 0:02:40]} 1/2-1/2

[Event "Live Chess"]
[Site "Chess.com"]
[Date "2024.06.02"]
[Round "-"]
[White "TC2304"]
[Black "upoe610"]
[Result "1-0"]
[WhiteElo "2348"]
[BlackElo "2135"]
[TimeControl "300"]
[EndTime "3:11:40 PDT"]
[Termination "TC2304 won by resignation"]

1. d4 {[%clk 0:04:53.6]} 1... Nf6 {[%clk 0:04:58.9]} 2. Nf3 {[%clk 0:04:52.4]}
2... c5 {[%clk 0:04:58]} 3. d5 {[%clk 0:04:50.5]} 3... b5 {[%clk 0:04:57.1]} 4.
a4 {[%clk 0:04:47.8]} 4... b4 {[%clk 0:04:55.8]} 5. Nbd2 {[%clk 0:04:45]} 5...
g6 {[%clk 0:04:54]} 6. e4 {[%clk 0:04:42.1]} 6... d6 {[%clk 0:04:52.8]} 7. Bb5+
{[%clk 0:04:40.2]} 7... Bd7 {[%clk 0:04:50.4]} 8. O-O {[%clk 0:04:39.4]} 8...
Bg7 {[%clk 0:04:48.8]} 9. Re1 {[%clk 0:04:38.4]} 9... O-O {[%clk 0:04:47]} 10.
h3 {[%clk 0:04:37.3]} 10... Qb6 {[%clk 0:04:43.8]} 11. Nc4 {[%clk 0:04:35.3]}
11... Qc7 {[%clk 0:04:42.4]} 12. Bf4 {[%clk 0:04:28.9]} 12... a6 {[%clk
0:04:40.5]} 13. Bxd7 {[%clk 0:04:27.6]} 13... Nbxd7 {[%clk 0:04:39.8]} 14. Qd2
{[%clk 0:04:23.1]} 14... Nb6 {[%clk 0:04:30.8]} 15. Nxb6 {[%clk 0:04:19.5]}
15... Qxb6 {[%clk 0:04:30.7]} 16. Bh6 {[%clk 0:04:15.9]} 16... Rfb8 {[%clk
0:04:27.9]} 17. Bxg7 {[%clk 0:04:10.7]} 17... Kxg7 {[%clk 0:04:26.9]} 18. b3
{[%clk 0:04:06.9]} 18... a5 {[%clk 0:04:24.3]} 19. Qf4 {[%clk 0:03:59.7]} 19...
c4 {[%clk 0:04:17]} 20. Nd2 {[%clk 0:03:54.9]} 20... cxb3 {[%clk 0:04:15.3]} 21.
cxb3 {[%clk 0:03:54.8]} 21... Rc8 {[%clk 0:04:13.9]} 22. Nc4 {[%clk 0:03:52.9]}
22... Qd4 {[%clk 0:04:10.7]} 23. Rad1 {[%clk 0:03:52.2]} 23... Qc3 {[%clk
0:04:08.8]} 24. Re3 {[%clk 0:03:41.5]} 24... Qc2 {[%clk 0:04:04.4]} 25. Rdd3
{[%clk 0:03:29.3]} 25... Rab8 {[%clk 0:03:56.9]} 26. Qf3 {[%clk 0:03:24.8]}
26... Nd7 {[%clk 0:03:44.5]} 27. Rd2 {[%clk 0:03:01.6]} 27... Qc1+ {[%clk
0:03:40.3]} 28. Rd1 {[%clk 0:03:00.1]} 28... Qc2 {[%clk 0:03:37.3]} 29. Qe2
{[%clk 0:02:51]} 29... Qxe2 {[%clk 0:03:33]} 30. Rxe2 {[%clk 0:02:50.9]} 30...
Rxc4 {[%clk 0:03:22.9]} 31. bxc4 {[%clk 0:02:49.9]} 31... Ne5 {[%clk 0:03:22.8]}
32. Rc2 {[%clk 0:02:22.9]} 32... b3 {[%clk 0:03:16.6]} 33. Rc3 {[%clk
0:02:21.4]} 33... Rb4 {[%clk 0:03:09.7]} 34. Rb1 {[%clk 0:02:14.7]} 34... b2
{[%clk 0:03:08.7]} 35. c5 {[%clk 0:02:00.5]} 35... dxc5 {[%clk 0:03:04.1]} 36.
Rxc5 {[%clk 0:02:00.4]} 36... Nc4 {[%clk 0:03:03.7]} 37. Rxc4 {[%clk 0:01:57]}
37... Rxc4 {[%clk 0:03:02.7]} 38. Rxb2 {[%clk 0:01:56.8]} 38... Rxa4 {[%clk
0:03:02.6]} 39. f3 {[%clk 0:01:44.2]} 39... Kf6 {[%clk 0:03:00.5]} 40. Rb7
{[%clk 0:01:40.9]} 40... h5 {[%clk 0:02:56.5]} 41. h4 {[%clk 0:01:38.4]} 41...
e6 {[%clk 0:02:52.4]} 42. dxe6 {[%clk 0:01:33.2]} 42... Kxe6 {[%clk 0:02:51.5]}
43. Kh2 {[%clk 0:01:32.6]} 43... Ra2 {[%clk 0:02:50.1]} 44. Kg3 {[%clk
0:01:30.9]} 44... a4 {[%clk 0:02:49.2]} 45. Ra7 {[%clk 0:01:29.9]} 45... a3
{[%clk 0:02:48.2]} 46. Kf4 {[%clk 0:01:29.4]} 46... f6 {[%clk 0:02:33.6]} 47.
Ra6+ {[%clk 0:01:27]} 47... Kf7 {[%clk 0:02:31.8]} 48. g3 {[%clk 0:01:24.6]}
48... Ra1 {[%clk 0:02:28.8]} 49. Ra7+ {[%clk 0:01:21.2]} 49... Kg8 {[%clk
0:02:27.5]} 50. Ra6 {[%clk 0:01:21.1]} 50... Kg7 {[%clk 0:02:26.6]} 51. Ra7+
{[%clk 0:01:20.7]} 51... Kh6 {[%clk 0:02:25.9]} 52. e5 {[%clk 0:01:11.1]} 52...
fxe5+ {[%clk 0:02:21.9]} 53. Kxe5 {[%clk 0:01:11]} 53... Re1+ {[%clk 0:02:17.3]}
54. Kf4 {[%clk 0:01:05.4]} 54... Ra1 {[%clk 0:02:13.2]} 55. g4 {[%clk
0:01:02.9]} 55... hxg4 {[%clk 0:02:11.8]} 56. fxg4 {[%clk 0:01:02.8]} 56... Rf1+
{[%clk 0:02:08.1]} 57. Kg3 {[%clk 0:01:00.4]} 57... Rg1+ {[%clk 0:02:05.7]} 58.
Kf3 {[%clk 0:00:56.8]} 58... Rf1+ {[%clk 0:02:02.4]} 59. Kg2 {[%clk 0:00:55.6]}
59... Ra1 {[%clk 0:02:00.5]} 60. Kh3 {[%clk 0:00:49.5]} 60... Rh1+ {[%clk
0:01:56.8]} 61. Kg3 {[%clk 0:00:46.8]} 61... Rg1+ {[%clk 0:01:55.7]} 62. Kf4
{[%clk 0:00:44.8]} 62... Rf1+ {[%clk 0:01:54.2]} 63. Ke3 {[%clk 0:00:43.3]}
63... Rh1 {[%clk 0:01:49.2]} 64. Kf3 {[%clk 0:00:36.9]} 64... Rxh4 {[%clk
0:01:39.1]} 65. Kg3 {[%clk 0:00:35.8]} 65... Rh1 {[%clk 0:01:33.7]} 66. Rxa3
{[%clk 0:00:34.1]} 66... Rg1+ {[%clk 0:01:32]} 67. Kf4 {[%clk 0:00:33.4]} 67...
g5+ {[%clk 0:01:30.4]} 68. Ke5 {[%clk 0:00:30.2]} 68... Rxg4 {[%clk 0:01:28.6]}
69. Kf5 {[%clk 0:00:28.8]} 69... Rf4+ {[%clk 0:01:27.4]} 70. Ke5 {[%clk
0:00:28.4]} 70... Kh5 {[%clk 0:01:26.6]} 71. Ra1 {[%clk 0:00:20.8]} 71... Kg4
{[%clk 0:01:25.2]} 72. Rg1+ {[%clk 0:00:20.2]} 72... Kh4 {[%clk 0:01:15]} 73.
Rh1+ {[%clk 0:00:19.7]} 73... Kg4 {[%clk 0:01:14.5]} 74. Rg1+ {[%clk 0:00:19.6]}
74... Kh5 {[%clk 0:01:13.5]} 75. Rh1+ {[%clk 0:00:19.2]} 75... Kg6 {[%clk
0:01:12.9]} 76. Rg1 {[%clk 0:00:19]} 76... Kh5 {[%clk 0:01:05.9]} 77. Rh1+
{[%clk 0:00:18.1]} 77... Rh4 {[%clk 0:01:05.6]} 78. Rg1 {[%clk 0:00:18]} 78...
Rh2 {[%clk 0:00:59.2]} 79. Ke4 {[%clk 0:00:15.1]} 79... Kh4 {[%clk 0:00:58.1]}
80. Kf3 {[%clk 0:00:14.3]} 80... Ra2 {[%clk 0:00:53.4]} 81. Rh1+ {[%clk
0:00:13.4]} 1-0

[Event "Live Chess"]
[Site "Chess.com"]
[Date "2024.06.02"]
[Round "-"]
[White "AlanBstard10"]
[Black "MagnersCarlsberg2870"]
[Result "1/2-1/2"]
[WhiteElo "1233"]
[BlackElo "1782"]
[TimeControl "300"]
[EndTime "3:12:36 PDT"]
[Termination "Game drawn by repetition"]

1. b4 {[%clk 0:04:57.4]} 1... e6 {[%clk 0:04:57.8]} 2. Bb2 {[%clk 0:04:57]} 2...
Nf6 {[%clk 0:04:56.4]} 3. a3 {[%clk 0:04:55.5]} 3... c5 {[%clk 0:04:54.9]} 4. c3
{[%clk 0:04:53.8]} 4... d5 {[%clk 0:04:52.8]} 5. bxc5 {[%clk 0:04:52.8]} 5...
Bxc5 {[%clk 0:04:51.4]} 6. d4 {[%clk 0:04:51]} 6... Bd6 {[%clk 0:04:49.5]} 7. e3
{[%clk 0:04:50.2]} 7... Nc6 {[%clk 0:04:46]} 8. Nd2 {[%clk 0:04:48.8]} 8... Bd7
{[%clk 0:04:44.2]} 9. Ngf3 {[%clk 0:04:47.9]} 9... h5 {[%clk 0:04:39.3]} 10. Be2
{[%clk 0:04:46.7]} 10... Rc8 {[%clk 0:04:38]} 11. a4 {[%clk 0:04:45.1]} 11...
Ng4 {[%clk 0:04:28.5]} 12. Ba3 {[%clk 0:04:42.7]} 12... Qe7 {[%clk 0:04:24.7]}
13. Bxd6 {[%clk 0:04:31.2]} 13... Qxd6 {[%clk 0:04:23.5]} 14. O-O {[%clk
0:04:21.4]} 14... e5 {[%clk 0:04:17.9]} 15. dxe5 {[%clk 0:04:18.9]} 15... Ncxe5
{[%clk 0:04:16.9]} 16. Nxe5 {[%clk 0:04:18.6]} 16... Qxe5 {[%clk 0:04:16]} 17.
Bxg4 {[%clk 0:04:10.7]} 17... hxg4 {[%clk 0:04:14.2]} 18. f4 {[%clk 0:04:07.3]}
18... Qxe3+ {[%clk 0:04:12.1]} 19. Rf2 {[%clk 0:04:04.6]} 19... Qxc3 {[%clk
0:04:09.4]} 20. Re2+ {[%clk 0:04:03.3]} 20... Kf8 {[%clk 0:04:07.7]} 21. Qb1
{[%clk 0:03:44.5]} 21... Qd4+ {[%clk 0:04:01.7]} 22. Kh1 {[%clk 0:03:42.1]}
22... f6 {[%clk 0:03:48.7]} 23. Qd1 {[%clk 0:03:20.6]} 23... Kf7 {[%clk
0:03:46.5]} 24. Re1 {[%clk 0:03:15.6]} 24... Rxh2+ {[%clk 0:03:37.8]} 25. Kxh2
{[%clk 0:03:12.9]} 25... Rh8+ {[%clk 0:03:36.6]} 26. Kg3 {[%clk 0:03:11]} 26...
Qd3+ {[%clk 0:03:27.4]} 27. Kf2 {[%clk 0:03:04.8]} 27... g3+ {[%clk 0:03:22.4]}
28. Kg1 {[%clk 0:02:56.4]} 28... Qh7 {[%clk 0:03:18]} 29. Kf1 {[%clk 0:02:40]}
29... Qh1+ {[%clk 0:03:15.6]} 30. Ke2 {[%clk 0:02:39.2]} 30... Qxg2+ {[%clk
0:03:11]} 31. Ke3 {[%clk 0:02:32.6]} 31... Qf2+ {[%clk 0:03:07.6]} 32. Kd3
{[%clk 0:02:26.7]} 32... Rc8 {[%clk 0:03:01.1]} 33. Qh5+ {[%clk 0:02:24.9]}
33... Kg8 {[%clk 0:02:56.7]} 34. Rh1 {[%clk 0:01:52.6]} 34... g2 {[%clk
0:02:14.2]} 35. Qh7+ {[%clk 0:01:48]} 35... Kf7 {[%clk 0:02:13.1]} 36. Qh5+
{[%clk 0:01:41.5]} 36... Kg8 {[%clk 0:02:07]} 37. Qh7+ {[%clk 0:01:39.1]} 37...
Kf7 {[%clk 0:02:05.8]} 38. Qh5+ {[%clk 0:01:37.7]} 38... Kg8 {[%clk 0:02:03.6]}
1/2-1/2

[Event "Live Chess"]
[Site "Chess.com"]
[Date "2024.06.02"]
[Round "-"]
[White "WeakOldFinished"]
[Black "CarmelJane"]
[Result "1-0"]
[WhiteElo "2156"]
[BlackElo "2058"]
[TimeControl "300"]
[EndTime "3:12:45 PDT"]
[Termination "WeakOldFinished won by resignation"]

1. d4 {[%clk 0:04:57.1]} 1... g6 {[%clk 0:04:58.6]} 2. e4 {[%clk 0:04:55.9]}
2... Bg7 {[%clk 0:04:58.5]} 3. c3 {[%clk 0:04:54.9]} 3... d5 {[%clk 0:04:55]} 4.
exd5 {[%clk 0:04:53.3]} 4... Qxd5 {[%clk 0:04:53.6]} 5. Nf3 {[%clk 0:04:52]}
5... Bg4 {[%clk 0:04:51.9]} 6. Nbd2 {[%clk 0:04:50.3]} 6... c5 {[%clk
0:04:43.8]} 7. Bc4 {[%clk 0:04:47.7]} 7... Qd6 {[%clk 0:04:28.2]} 8. Bxf7+
{[%clk 0:04:42.6]} 8... Kxf7 {[%clk 0:04:16.7]} 9. Ng5+ {[%clk 0:04:41.2]} 9...
Ke8 {[%clk 0:04:13]} 10. Qxg4 {[%clk 0:04:40.5]} 10... Nd7 {[%clk 0:03:59]} 11.
Nde4 {[%clk 0:04:31]} 11... Qd5 {[%clk 0:03:46.3]} 12. Nxc5 {[%clk 0:04:17.3]}
12... Nxc5 {[%clk 0:03:40.2]} 13. dxc5 {[%clk 0:04:17.2]} 13... Nf6 {[%clk
0:02:49]} 14. Qe6 {[%clk 0:04:14.5]} 14... Qxg2 {[%clk 0:02:38.4]} 15. Rf1
{[%clk 0:04:02.6]} 15... Nh5 {[%clk 0:01:45.8]} 16. Be3 {[%clk 0:03:51.1]} 16...
h6 {[%clk 0:01:31.1]} 17. Qxg6+ {[%clk 0:03:48.3]} 17... Kd8 {[%clk 0:01:27.6]}
18. O-O-O+ {[%clk 0:03:47.1]} 18... Kc7 {[%clk 0:01:25.2]} 19. Ne6+ {[%clk
0:03:43.8]} 1-0

[Event "Live Chess"]
[Site "Chess.com"]
[Date "2024.06.02"]
[Round "-"]
[White "Isambard_Thomas"]
[Black "Queensandpawns"]
[Result "1-0"]
[WhiteElo "2179"]
[BlackElo "2247"]
[TimeControl "300"]
[EndTime "3:13:06 PDT"]
[Termination "Isambard_Thomas won by resignation"]

1. d4 {[%clk 0:04:59.3]} 1... e5 {[%clk 0:04:58.6]} 2. Nf3 {[%clk 0:04:55.2]}
2... e4 {[%clk 0:04:57.5]} 3. Ne5 {[%clk 0:04:53.8]} 3... d5 {[%clk 0:04:53.9]}
4. e3 {[%clk 0:04:51.9]} 4... f6 {[%clk 0:04:51.2]} 5. Qh5+ {[%clk 0:04:44]}
5... Ke7 {[%clk 0:04:41.6]} 6. Qf7+ {[%clk 0:04:17.5]} 6... Kd6 {[%clk
0:04:40.9]} 7. b3 {[%clk 0:04:02.1]} 7... fxe5 {[%clk 0:04:29.6]} 8. Ba3+ {[%clk
0:04:01]} 8... Kc6 {[%clk 0:04:29.5]} 9. Qxf8 {[%clk 0:03:53.5]} 9... Qxf8
{[%clk 0:04:25.2]} 10. Bxf8 {[%clk 0:03:53.2]} 10... h5 {[%clk 0:04:13.8]} 11.
Bxg7 {[%clk 0:03:51.2]} 11... Rh7 {[%clk 0:04:12.7]} 12. Bxe5 {[%clk 0:03:50.7]}
12... Nd7 {[%clk 0:04:12.4]} 13. Bf4 {[%clk 0:03:41.9]} 13... Nb6 {[%clk
0:04:07.9]} 14. Nd2 {[%clk 0:03:38.8]} 14... Be6 {[%clk 0:04:05.8]} 15. Rc1
{[%clk 0:03:36.2]} 15... Kd7 {[%clk 0:04:04.5]} 16. c4 {[%clk 0:03:35.1]} 16...
c6 {[%clk 0:04:04]} 17. c5 {[%clk 0:03:29.7]} 17... Nc8 {[%clk 0:04:03.3]} 18.
f3 {[%clk 0:03:22.2]} 18... exf3 {[%clk 0:04:00.7]} 19. Nxf3 {[%clk 0:03:20.7]}
19... Nce7 {[%clk 0:04:00.6]} 20. Ne5+ {[%clk 0:03:19]} 20... Kc8 {[%clk
0:03:58.7]} 21. Bd3 {[%clk 0:03:15.7]} 21... Rg7 {[%clk 0:03:56.9]} 22. O-O
{[%clk 0:02:52.3]} 22... Nf6 {[%clk 0:03:54.6]} 23. Nf3 {[%clk 0:02:43.8]} 23...
Ne4 {[%clk 0:03:41.9]} 24. Bxe4 {[%clk 0:02:42.2]} 24... dxe4 {[%clk 0:03:41.8]}
25. Ng5 {[%clk 0:02:41.6]} 25... Bd5 {[%clk 0:03:40.6]} 26. h4 {[%clk
0:02:36.2]} 26... Kd7 {[%clk 0:03:39.7]} 27. Be5 {[%clk 0:02:30.3]} 27... Rg6
{[%clk 0:03:37]} 28. Rf4 {[%clk 0:02:22.8]} 28... Rag8 {[%clk 0:03:33.6]} 29.
Rcf1 {[%clk 0:02:21.7]} 29... b6 {[%clk 0:03:18]} 30. Bd6 {[%clk 0:02:20.7]}
30... bxc5 {[%clk 0:03:16.1]} 31. dxc5 {[%clk 0:02:17.7]} 31... Nc8 {[%clk
0:03:14.7]} 32. R1f2 {[%clk 0:02:03.4]} 32... Nxd6 {[%clk 0:02:45.9]} 33. cxd6
{[%clk 0:02:03.3]} 33... Kxd6 {[%clk 0:02:45.8]} 34. Nxe4+ {[%clk 0:01:58.4]}
34... Ke5 {[%clk 0:02:45.2]} 35. Ng5 {[%clk 0:01:52.2]} 35... Kd6 {[%clk
0:02:42]} 36. Rf6+ {[%clk 0:01:49.4]} 36... Rxf6 {[%clk 0:02:41.2]} 37. Rxf6+
{[%clk 0:01:49]} 37... Kc5 {[%clk 0:02:41.1]} 38. e4 {[%clk 0:01:46.3]} 1-0